[Event "*** Titled Tuesday Blitz"]
[Site "Chess.com"]
[Date "2021.04.27"]
[Round "3"]
[White "agartha01"]
[Black "Lyschko"]
[Result "1/2-1/2"]
[WhiteElo "2530"]
[BlackElo "2273"]
[TimeControl "180+1"]
[EndTime "10:29:17 PDT"]
[Termination "Game drawn by repetition"]

1. c4 {[%clk 0:03:00.9]} 1... e5 {[%clk 0:02:59.2]} 2. Nc3 {[%clk 0:03:00.5]}
2... d6 {[%clk 0:02:59.3]} 3. g3 {[%clk 0:03:00.5]} 3... f5 {[%clk 0:02:59.4]}
4. Bg2 {[%clk 0:03:00.7]} 4... Nf6 {[%clk 0:02:59.8]} 5. e3 {[%clk 0:03:01]}
5... Be7 {[%clk 0:02:59.8]} 6. Nge2 {[%clk 0:03:01]} 6... O-O {[%clk 0:02:59.5]}
7. d4 {[%clk 0:03:01.5]} 7... c6 {[%clk 0:02:58]} 8. O-O {[%clk 0:02:59.6]} 8...
Be6 {[%clk 0:02:56.7]} 9. d5 {[%clk 0:02:54.4]} 9... Bf7 {[%clk 0:02:55.8]} 10.
dxc6 {[%clk 0:02:54.7]} 10... bxc6 {[%clk 0:02:52.9]} 11. b3 {[%clk 0:02:52.7]}
11... Qc7 {[%clk 0:02:48.7]} 12. Ba3 {[%clk 0:02:46.7]} 12... Na6 {[%clk
0:02:44.3]} 13. Rc1 {[%clk 0:02:36.3]} 13... Rad8 {[%clk 0:02:40.2]} 14. Qd2
{[%clk 0:02:31.9]} 14... Kh8 {[%clk 0:02:16.7]} 15. Rfd1 {[%clk 0:02:29.9]}
15... Qa5 {[%clk 0:02:09.9]} 16. Na4 {[%clk 0:02:16.9]} 16... Qxd2 {[%clk
0:02:06.1]} 17. Rxd2 {[%clk 0:02:16.2]} 17... Ne4 {[%clk 0:01:41.4]} 18. Rd3
{[%clk 0:01:38.9]} 18... Bh5 {[%clk 0:01:24.6]} 19. Nec3 {[%clk 0:01:30.5]}
19... Nxc3 {[%clk 0:01:21.6]} 20. Nxc3 {[%clk 0:01:30.7]} 20... e4 {[%clk
0:01:21.2]} 21. Rd2 {[%clk 0:01:20.8]} 21... Nc5 {[%clk 0:01:06.9]} 22. Ne2
{[%clk 0:00:58.7]} 22... Nd3 {[%clk 0:01:01.2]} 23. Rf1 {[%clk 0:00:54.6]} 23...
Bf6 {[%clk 0:00:56.2]} 24. Nf4 {[%clk 0:00:40.1]} 24... Nxf4 {[%clk 0:00:52.6]}
25. gxf4 {[%clk 0:00:36.4]} 25... Be7 {[%clk 0:00:47.1]} 26. f3 {[%clk
0:00:23.1]} 26... exf3 {[%clk 0:00:45.3]} 27. Bxf3 {[%clk 0:00:23.6]} 27... Bxf3
{[%clk 0:00:45.1]} 28. Rxf3 {[%clk 0:00:24.2]} 28... Rfe8 {[%clk 0:00:44]} 29.
Rg3 {[%clk 0:00:17.7]} 29... d5 {[%clk 0:00:40.2]} 30. Bb2 {[%clk 0:00:16.9]}
30... Bf6 {[%clk 0:00:37.2]} 31. Bxf6 {[%clk 0:00:16.5]} 31... gxf6 {[%clk
0:00:37.3]} 32. cxd5 {[%clk 0:00:17.2]} 32... cxd5 {[%clk 0:00:34.3]} 33. Kf2
{[%clk 0:00:17.1]} 33... Re4 {[%clk 0:00:30.5]} 34. Rg1 {[%clk 0:00:15.8]} 34...
d4 {[%clk 0:00:30.1]} 35. Rxd4 {[%clk 0:00:13.1]} 35... Rdxd4 {[%clk 0:00:29.1]}
36. exd4 {[%clk 0:00:13.8]} 36... Rxd4 {[%clk 0:00:27.5]} 37. Ke3 {[%clk
0:00:14.3]} 37... Re4+ {[%clk 0:00:25.6]} 38. Kf3 {[%clk 0:00:14.9]} 38... Rd4
{[%clk 0:00:25.8]} 39. Rc1 {[%clk 0:00:15.5]} 39... Rd2 {[%clk 0:00:24.4]} 40.
Rc8+ {[%clk 0:00:15.2]} 40... Kg7 {[%clk 0:00:23.6]} 41. Rc7+ {[%clk 0:00:15.9]}
41... Kg6 {[%clk 0:00:23.7]} 42. Rxa7 {[%clk 0:00:16.5]} 42... Rxh2 {[%clk
0:00:23.4]} 43. b4 {[%clk 0:00:16.8]} 43... Rb2 {[%clk 0:00:23.1]} 44. a3 {[%clk
0:00:15.5]} 44... Rb3+ {[%clk 0:00:20.8]} 45. Kg2 {[%clk 0:00:14.6]} 45... h5
{[%clk 0:00:19.5]} 46. Kh2 {[%clk 0:00:13.2]} 46... h4 {[%clk 0:00:18.9]} 47.
Ra5 {[%clk 0:00:12.5]} 47... Kh5 {[%clk 0:00:17.4]} 48. Rxf5+ {[%clk 0:00:11.9]}
48... Kg4 {[%clk 0:00:17.5]} 49. Rxf6 {[%clk 0:00:12.4]} 49... Rxa3 {[%clk
0:00:15.3]} 50. b5 {[%clk 0:00:12.5]} 50... Ra2+ {[%clk 0:00:15]} 51. Kh1 {[%clk
0:00:12.7]} 51... Kg3 {[%clk 0:00:12.1]} 52. Rg6+ {[%clk 0:00:10.9]} 52... Kh3
{[%clk 0:00:10.8]} 53. b6 {[%clk 0:00:08.5]} 53... Rb2 {[%clk 0:00:10.8]} 54. f5
{[%clk 0:00:07.5]} 54... Rb1+ {[%clk 0:00:10.6]} 55. Rg1 {[%clk 0:00:07.5]}
55... Rxb6 {[%clk 0:00:10.5]} 56. Rf1 {[%clk 0:00:07.9]} 56... Rf6 {[%clk
0:00:10]} 57. Rf2 {[%clk 0:00:07.4]} 57... Kg4 {[%clk 0:00:09.8]} 58. Kh2 {[%clk
0:00:08]} 58... Rxf5 {[%clk 0:00:09.9]} 59. Ra2 {[%clk 0:00:08.7]} 59... Rb5
{[%clk 0:00:08.1]} 60. Ra4+ {[%clk 0:00:08.2]} 60... Kh5 {[%clk 0:00:07.8]} 61.
Kh3 {[%clk 0:00:08.9]} 61... Rb3+ {[%clk 0:00:07.8]} 62. Kh2 {[%clk 0:00:09.6]}
62... Rb2+ {[%clk 0:00:08]} 63. Kh3 {[%clk 0:00:10.3]} 63... Rb3+ {[%clk
0:00:08.2]} 64. Kh2 {[%clk 0:00:10.9]} 64... Rb2+ {[%clk 0:00:08.4]} 65. Kh3
{[%clk 0:00:11.6]} 65... Rb3+ {[%clk 0:00:08.6]} 1/2-1/2

[Event "*** Titled Tuesday Blitz"]
[Site "Chess.com"]
[Date "2021.04.27"]
[Round "3"]
[White "Rsnr"]
[Black "Shuvalov"]
[Result "1-0"]
[WhiteElo "2765"]
[BlackElo "2456"]
[TimeControl "180+1"]
[EndTime "10:29:19 PDT"]
[Termination "Rsnr won by resignation"]

1. b3 {[%clk 0:03:00.9]} 1... d5 {[%clk 0:02:54.8]} 2. Bb2 {[%clk 0:03:01.8]}
2... Nf6 {[%clk 0:02:54.8]} 3. g3 {[%clk 0:03:01]} 3... Bf5 {[%clk 0:02:54.5]}
4. Bg2 {[%clk 0:03:01.4]} 4... e6 {[%clk 0:02:54.1]} 5. Nf3 {[%clk 0:03:00.8]}
5... h6 {[%clk 0:02:54.1]} 6. O-O {[%clk 0:03:01.1]} 6... Be7 {[%clk 0:02:54.2]}
7. d3 {[%clk 0:03:01.6]} 7... O-O {[%clk 0:02:54.2]} 8. Nbd2 {[%clk 0:03:01.8]}
8... Bh7 {[%clk 0:02:53.8]} 9. c4 {[%clk 0:02:57.9]} 9... c6 {[%clk 0:02:50.2]}
10. Qc2 {[%clk 0:02:57.5]} 10... a5 {[%clk 0:02:48.7]} 11. a3 {[%clk 0:02:57.4]}
11... Nbd7 {[%clk 0:02:48.7]} 12. Ra2 {[%clk 0:02:44.3]} 12... Qb6 {[%clk
0:02:47.2]} 13. Qb1 {[%clk 0:02:32.2]} 13... Rfc8 {[%clk 0:02:46.4]} 14. Qa1
{[%clk 0:02:32]} 14... Qd8 {[%clk 0:02:45.8]} 15. Rc1 {[%clk 0:02:30.9]} 15...
Qf8 {[%clk 0:02:45.2]} 16. Nd4 {[%clk 0:02:17.2]} 16... e5 {[%clk 0:02:24.7]}
17. Nc2 {[%clk 0:02:09.8]} 17... Bd6 {[%clk 0:02:14.5]} 18. Bc3 {[%clk 0:01:44]}
18... d4 {[%clk 0:01:59.4]} 19. Bb2 {[%clk 0:01:44]} 19... Re8 {[%clk
0:01:50.1]} 20. b4 {[%clk 0:01:43.9]} 20... a4 {[%clk 0:01:45.1]} 21. c5 {[%clk
0:01:21.9]} 21... Bc7 {[%clk 0:01:42.5]} 22. Ne1 {[%clk 0:01:20]} 22... Nd5
{[%clk 0:01:09.4]} 23. Nc4 {[%clk 0:01:09]} 23... N7f6 {[%clk 0:01:06.3]} 24. e4
{[%clk 0:01:00]} 24... dxe3 {[%clk 0:00:56.9]} 25. fxe3 {[%clk 0:01:00.9]} 25...
e4 {[%clk 0:00:56.9]} 26. Bxf6 {[%clk 0:00:46.5]} 26... Nxf6 {[%clk 0:00:56.3]}
27. d4 {[%clk 0:00:47.2]} 27... h5 {[%clk 0:00:52.6]} 28. Qb2 {[%clk 0:00:22]}
28... Qe7 {[%clk 0:00:50.4]} 29. Bh3 {[%clk 0:00:13.8]} 29... h4 {[%clk
0:00:43.9]} 30. gxh4 {[%clk 0:00:14.7]} 30... Nd5 {[%clk 0:00:42.1]} 31. Qf2
{[%clk 0:00:14.9]} 31... Bd8 {[%clk 0:00:32.4]} 32. Ng2 {[%clk 0:00:14.9]} 32...
Bg6 {[%clk 0:00:31]} 33. Nd6 {[%clk 0:00:14.9]} 33... Rf8 {[%clk 0:00:30.6]} 34.
Bf5 {[%clk 0:00:13.8]} 34... Bh5 {[%clk 0:00:30]} 35. Bxe4 {[%clk 0:00:13.6]}
35... Bc7 {[%clk 0:00:29.4]} 36. Bxd5 {[%clk 0:00:11.2]} 36... cxd5 {[%clk
0:00:30.3]} 37. Nf4 {[%clk 0:00:10.7]} 37... Bg4 {[%clk 0:00:29.3]} 38. Nxd5
{[%clk 0:00:09.2]} 38... Qd7 {[%clk 0:00:29]} 39. Nxc7 {[%clk 0:00:07]} 39...
Qxc7 {[%clk 0:00:29.9]} 40. e4 {[%clk 0:00:06.9]} 40... Rad8 {[%clk 0:00:28.9]}
41. Qf4 {[%clk 0:00:06.1]} 41... Bh5 {[%clk 0:00:27.4]} 42. Rg2 {[%clk
0:00:06.5]} 42... Kh8 {[%clk 0:00:25.7]} 43. e5 {[%clk 0:00:06.9]} 43... Rg8
{[%clk 0:00:25.7]} 44. Re1 {[%clk 0:00:06.7]} 44... Qc6 {[%clk 0:00:25.7]} 45.
Qe4 {[%clk 0:00:06.6]} 45... Qd7 {[%clk 0:00:24.2]} 46. Rg5 {[%clk 0:00:06.8]}
46... Bg6 {[%clk 0:00:23.3]} 47. Qf3 {[%clk 0:00:07]} 47... Rdf8 {[%clk
0:00:22.5]} 48. h5 {[%clk 0:00:07]} 48... Bh7 {[%clk 0:00:22.6]} 49. Rf1 {[%clk
0:00:07.5]} 49... Qe6 {[%clk 0:00:22.6]} 50. Nxf7+ {[%clk 0:00:06.4]} 50... Rxf7
{[%clk 0:00:21.8]} 51. Qxf7 {[%clk 0:00:07.3]} 51... Qh3 {[%clk 0:00:21.3]} 52.
Qf3 {[%clk 0:00:06.8]} 52... Qh4 {[%clk 0:00:20.9]} 53. Qf4 {[%clk 0:00:05.8]}
53... Qh3 {[%clk 0:00:20.4]} 54. Rf3 {[%clk 0:00:05]} 54... Qe6 {[%clk
0:00:20.5]} 55. Rfg3 {[%clk 0:00:05]} 55... Qa2 {[%clk 0:00:18.9]} 56. h4 {[%clk
0:00:03.2]} 56... Qb1+ {[%clk 0:00:17.8]} 57. Kh2 {[%clk 0:00:03.8]} 57... Be4
{[%clk 0:00:18.1]} 58. Rg1 {[%clk 0:00:03]} 58... Qc2+ {[%clk 0:00:18.1]} 59.
R5g2 {[%clk 0:00:03.3]} 59... Bxg2 {[%clk 0:00:17.5]} 60. Rxg2 {[%clk
0:00:04.2]} 60... Qd3 {[%clk 0:00:17.7]} 61. h6 {[%clk 0:00:04.6]} 61... gxh6
{[%clk 0:00:16.5]} 62. Qxh6+ {[%clk 0:00:04.5]} 62... Qh7 {[%clk 0:00:15.7]} 63.
Rxg8+ {[%clk 0:00:04.8]} 63... Kxg8 {[%clk 0:00:15.8]} 64. Qxh7+ {[%clk
0:00:05.7]} 64... Kxh7 {[%clk 0:00:16]} 65. Kg3 {[%clk 0:00:06.6]} 65... Kg6
{[%clk 0:00:16.8]} 66. Kf4 {[%clk 0:00:07.2]} 66... Kf7 {[%clk 0:00:17.7]} 67.
d5 {[%clk 0:00:07.8]} 67... Ke7 {[%clk 0:00:18.6]} 68. d6+ {[%clk 0:00:08.4]}
1-0

[Event "*** Titled Tuesday Blitz"]
[Site "Chess.com"]
[Date "2021.04.27"]
[Round "3"]
[White "NiranjanNavalgund"]
[Black "SanchezKelvin"]
[Result "1-0"]
[WhiteElo "2475"]
[BlackElo "196"]
[TimeControl "180+1"]
[EndTime "10:29:19 PDT"]
[Termination "NiranjanNavalgund won on time"]

1. e4 {[%clk 0:03:00.9]} 1... c5 {[%clk 0:01:59.4]} 2. d4 {[%clk 0:03:00.1]}
2... cxd4 {[%clk 0:01:59.2]} 3. c3 {[%clk 0:03:00.6]} 3... dxc3 {[%clk
0:02:00.1]} 4. Nf3 {[%clk 0:03:00.5]} 4... e6 {[%clk 0:02:01]} 5. Bc4 {[%clk
0:03:00.4]} 5... a6 {[%clk 0:02:01.9]} 6. Nxc3 {[%clk 0:03:00.6]} 6... b5 {[%clk
0:02:02.4]} 7. Bb3 {[%clk 0:03:00.5]} 7... Bb7 {[%clk 0:02:03.3]} 8. O-O {[%clk
0:03:00.8]} 8... d6 {[%clk 0:01:45.3]} 9. Qe2 {[%clk 0:02:59.4]} 9... Nd7 {[%clk
0:01:45.1]} 10. Bf4 {[%clk 0:02:59.5]} 10... Ngf6 {[%clk 0:01:44]} 11. Rfd1
{[%clk 0:02:59.9]} 11... b4 {[%clk 0:01:44.2]} 12. Nd5 {[%clk 0:02:55.8]} 12...
exd5 {[%clk 0:01:45.1]} 13. exd5+ {[%clk 0:02:56]} 13... Be7 {[%clk 0:01:45]}
14. Bxd6 {[%clk 0:02:55.8]} 14... Kf8 {[%clk 0:01:44.3]} 15. Bg3 {[%clk
0:02:51.5]} 15... Bc5 {[%clk 0:01:43.6]} 16. d6 {[%clk 0:02:49.9]} 16... h6
{[%clk 0:01:28.9]} 17. Qc4 {[%clk 0:02:43.4]} 17... Qe8 {[%clk 0:01:14.3]} 18.
Re1 {[%clk 0:02:43.5]} 18... Ne4 {[%clk 0:00:52]} 19. Nd2 {[%clk 0:02:35.8]}
19... Ndf6 {[%clk 0:00:50.4]} 20. Nxe4 {[%clk 0:02:18.7]} 20... Nxe4 {[%clk
0:00:47.9]} 21. Rxe4 {[%clk 0:02:18.3]} 21... Bxe4 {[%clk 0:00:44.8]} 22. Qxc5
{[%clk 0:02:18.5]} 22... Kg8 {[%clk 0:00:44.2]} 23. Re1 {[%clk 0:02:18.6]} 23...
Qc6 {[%clk 0:00:42.1]} 24. Qh5 {[%clk 0:02:13.4]} 24... Rf8 {[%clk 0:00:32.6]}
25. f3 {[%clk 0:02:07.4]} 25... Bc2 {[%clk 0:00:24.7]} 26. Bd5 {[%clk
0:02:04.5]} 26... Qc5+ {[%clk 0:00:20.5]} 27. Kh1 {[%clk 0:02:03.7]} 27... Qa7
{[%clk 0:00:15.1]} 28. Qg4 {[%clk 0:01:56.1]} 28... Kh7 {[%clk 0:00:14.6]} 29.
Be5 {[%clk 0:01:52.9]} 29... Bg6 {[%clk 0:00:14.2]} 30. h4 {[%clk 0:01:51.8]}
30... h5 {[%clk 0:00:13]} 31. Qf4 {[%clk 0:01:49]} 31... Qf2 {[%clk 0:00:12.3]}
32. Qxb4 {[%clk 0:01:38.9]} 32... Rb8 {[%clk 0:00:10.3]} 33. Qc3 {[%clk
0:01:36.5]} 33... Rxb2 {[%clk 0:00:09.5]} 34. Qxb2 {[%clk 0:01:34.7]} 34...
Qxe1+ {[%clk 0:00:08.1]} 35. Kh2 {[%clk 0:01:34.1]} 35... Qxh4+ {[%clk
0:00:08.7]} 36. Kg1 {[%clk 0:01:34.4]} 36... Qe1+ {[%clk 0:00:08.8]} 37. Kh2
{[%clk 0:01:34.4]} 37... Qh4+ {[%clk 0:00:08.9]} 38. Kg1 {[%clk 0:01:34.7]}
38... Re8 {[%clk 0:00:08.2]} 39. Bc3 {[%clk 0:01:29.4]} 39... Qf4 {[%clk
0:00:07.2]} 40. d7 {[%clk 0:01:27.9]} 40... Rd8 {[%clk 0:00:07.1]} 41. Bxg7
{[%clk 0:01:27.5]} 41... Rxd7 {[%clk 0:00:07.2]} 42. Bh8 {[%clk 0:01:26.6]}
42... Qe3+ {[%clk 0:00:07.1]} 43. Kh2 {[%clk 0:01:25.3]} 43... Qf4+ {[%clk
0:00:07.3]} 44. Kg1 {[%clk 0:01:25.7]} 44... Qe3+ {[%clk 0:00:07.3]} 45. Kh2
{[%clk 0:01:23.4]} 45... Qf4+ {[%clk 0:00:07.4]} 46. g3 {[%clk 0:01:23.6]} 46...
Qh6 {[%clk 0:00:06.8]} 47. Qe5 {[%clk 0:01:08.7]} 47... Qf8 {[%clk 0:00:05.9]}
48. Bf6 {[%clk 0:01:04.2]} 48... Qd6 {[%clk 0:00:05.8]} 49. Qe8 {[%clk
0:01:02.6]} 49... Qxf6 {[%clk 0:00:04.9]} 50. Qxd7 {[%clk 0:01:02.3]} 50... Qb2+
{[%clk 0:00:04.8]} 51. Kh3 {[%clk 0:01:01.9]} 51... Qf6 {[%clk 0:00:04.7]} 52.
Kg2 {[%clk 0:00:59.2]} 52... h4 {[%clk 0:00:04.9]} 53. gxh4 {[%clk 0:00:56.6]}
53... Kg7 {[%clk 0:00:05.2]} 54. Qg4 {[%clk 0:00:55.1]} 54... Kh6 {[%clk
0:00:04.3]} 55. Kg3 {[%clk 0:00:53.5]} 55... Qe5+ {[%clk 0:00:04.3]} 56. Qf4+
{[%clk 0:00:54]} 56... Qxf4+ {[%clk 0:00:04.6]} 57. Kxf4 {[%clk 0:00:54.9]}
57... f6 {[%clk 0:00:05]} 58. Kg4 {[%clk 0:00:54.1]} 58... Bd3 {[%clk
0:00:04.9]} 59. Be4 {[%clk 0:00:52.7]} 59... Bc4 {[%clk 0:00:04.9]} 60. a3
{[%clk 0:00:51.7]} 60... a5 {[%clk 0:00:05]} 61. Kf5 {[%clk 0:00:50.2]} 61...
Kg7 {[%clk 0:00:05.3]} 62. Kf4 {[%clk 0:00:48.4]} 62... Be6 {[%clk 0:00:05.1]}
63. Bf5 {[%clk 0:00:48.8]} 63... Bd5 {[%clk 0:00:05.3]} 64. Ke3 {[%clk
0:00:48.8]} 64... Kh6 {[%clk 0:00:05]} 65. Bg4 {[%clk 0:00:48.3]} 65... Kg6
{[%clk 0:00:04.5]} 66. Kf4 {[%clk 0:00:48.4]} 66... Bc4 {[%clk 0:00:04.4]} 67.
Ke3 {[%clk 0:00:45.3]} 67... Bb3 {[%clk 0:00:04]} 68. Kd4 {[%clk 0:00:44.6]}
68... f5 {[%clk 0:00:03.5]} 69. Bh3 {[%clk 0:00:44.5]} 69... Kf6 {[%clk
0:00:02.6]} 70. f4 {[%clk 0:00:44.7]} 70... Be6 {[%clk 0:00:01.5]} 71. Bg2
{[%clk 0:00:44.3]} 71... Kg6 {[%clk 0:00:01.4]} 72. Bf3 {[%clk 0:00:44.8]} 1-0

[Event "*** Titled Tuesday Blitz"]
[Site "Chess.com"]
[Date "2021.04.27"]
[Round "3"]
[White "Margency"]
[Black "gmpeter008"]
[Result "0-1"]
[WhiteElo "2651"]
[BlackElo "2436"]
[TimeControl "180+1"]
[EndTime "10:29:23 PDT"]
[Termination "gmpeter008 won on time"]

1. e4 {[%clk 0:03:00.9]} 1... e5 {[%clk 0:02:55.1]} 2. Nf3 {[%clk 0:03:00.6]}
2... Nc6 {[%clk 0:02:55.3]} 3. Bc4 {[%clk 0:02:59.7]} 3... Nf6 {[%clk
0:02:55.4]} 4. d3 {[%clk 0:02:53.3]} 4... Bc5 {[%clk 0:02:54.6]} 5. O-O {[%clk
0:02:47.6]} 5... d6 {[%clk 0:02:53.6]} 6. c3 {[%clk 0:02:43.4]} 6... a5 {[%clk
0:02:50.7]} 7. a4 {[%clk 0:02:40.5]} 7... O-O {[%clk 0:02:50]} 8. Bg5 {[%clk
0:02:39.4]} 8... Ne7 {[%clk 0:02:44.3]} 9. Bxf6 {[%clk 0:02:37.8]} 9... gxf6
{[%clk 0:02:44.6]} 10. d4 {[%clk 0:02:38]} 10... Bb6 {[%clk 0:02:42.8]} 11. Nbd2
{[%clk 0:02:31.9]} 11... Ng6 {[%clk 0:02:41.9]} 12. Re1 {[%clk 0:02:14.7]} 12...
c6 {[%clk 0:02:15.6]} 13. g3 {[%clk 0:02:12]} 13... Bg4 {[%clk 0:01:58]} 14. Be2
{[%clk 0:02:04.5]} 14... f5 {[%clk 0:01:55.9]} 15. dxe5 {[%clk 0:01:59]} 15...
dxe5 {[%clk 0:01:54.6]} 16. exf5 {[%clk 0:01:57.1]} 16... Bxf5 {[%clk
0:01:52.2]} 17. Nc4 {[%clk 0:01:56.2]} 17... Qxd1 {[%clk 0:01:47.6]} 18. Raxd1
{[%clk 0:01:47.9]} 18... Bc7 {[%clk 0:01:47.1]} 19. Bd3 {[%clk 0:01:33.3]} 19...
Bg4 {[%clk 0:01:42.9]} 20. Be2 {[%clk 0:01:28.4]} 20... Rad8 {[%clk 0:01:22.8]}
21. Ne3 {[%clk 0:01:22.5]} 21... Bc8 {[%clk 0:00:50.2]} 22. Bc4 {[%clk
0:01:16.9]} 22... Kg7 {[%clk 0:00:50]} 23. h4 {[%clk 0:01:10.8]} 23... f6 {[%clk
0:00:49.4]} 24. h5 {[%clk 0:01:08.7]} 24... Ne7 {[%clk 0:00:49.6]} 25. Nh4
{[%clk 0:01:08.7]} 25... Bb6 {[%clk 0:00:48.5]} 26. Kf1 {[%clk 0:01:01.4]} 26...
Bh3+ {[%clk 0:00:47.6]} 27. Kg1 {[%clk 0:00:59.3]} 27... Bxe3 {[%clk 0:00:44.4]}
28. fxe3 {[%clk 0:00:58.8]} 28... Bg4 {[%clk 0:00:44.4]} 29. Rxd8 {[%clk
0:00:58.1]} 29... Rxd8 {[%clk 0:00:45.3]} 30. Be2 {[%clk 0:00:58.7]} 30... Be6
{[%clk 0:00:41.8]} 31. Rd1 {[%clk 0:00:34.4]} 31... Rxd1+ {[%clk 0:00:41.7]} 32.
Bxd1 {[%clk 0:00:34.6]} 32... Nf5 {[%clk 0:00:35.5]} 33. Bg4 {[%clk 0:00:24.8]}
33... Nxh4 {[%clk 0:00:24.1]} 34. Bxe6 {[%clk 0:00:24.6]} 34... Nf3+ {[%clk
0:00:24.7]} 35. Kf2 {[%clk 0:00:23.9]} 35... Nd2 {[%clk 0:00:24]} 36. Ke2 {[%clk
0:00:19]} 36... Ne4 {[%clk 0:00:23.6]} 37. g4 {[%clk 0:00:16.4]} 37... Nc5
{[%clk 0:00:19]} 38. Bc8 {[%clk 0:00:13]} 38... Nxa4 {[%clk 0:00:15.7]} 39. Bxb7
{[%clk 0:00:12.3]} 39... Nxb2 {[%clk 0:00:16.1]} 40. Bxc6 {[%clk 0:00:12.2]}
40... h6 {[%clk 0:00:16]} 41. Bb5 {[%clk 0:00:11.2]} 41... Kf8 {[%clk
0:00:16.2]} 42. Kd2 {[%clk 0:00:11.6]} 42... a4 {[%clk 0:00:13.5]} 43. Kc2
{[%clk 0:00:12.2]} 43... a3 {[%clk 0:00:14]} 44. Kb3 {[%clk 0:00:12.6]} 44...
Nd1 {[%clk 0:00:14.3]} 45. e4 {[%clk 0:00:08.8]} 45... Nf2 {[%clk 0:00:14.6]}
46. Kxa3 {[%clk 0:00:08.4]} 46... Nxe4 {[%clk 0:00:14.7]} 47. Kb4 {[%clk
0:00:08.8]} 47... Ke7 {[%clk 0:00:14.5]} 48. Be2 {[%clk 0:00:08.3]} 48... Kd6
{[%clk 0:00:14.6]} 49. c4 {[%clk 0:00:07.6]} 49... Ng3 {[%clk 0:00:13.8]} 50.
c5+ {[%clk 0:00:07.9]} 50... Kc7 {[%clk 0:00:13.5]} 51. Bc4 {[%clk 0:00:07]}
51... Ne4 {[%clk 0:00:13]} 52. Kb5 {[%clk 0:00:06.6]} 52... Nc3+ {[%clk
0:00:12.5]} 53. Kb4 {[%clk 0:00:06.6]} 53... Ne4 {[%clk 0:00:12.8]} 54. Be2
{[%clk 0:00:06.6]} 54... Ng3 {[%clk 0:00:09.7]} 55. Bb5 {[%clk 0:00:05.4]} 55...
f5 {[%clk 0:00:09.7]} 56. g5 {[%clk 0:00:03.9]} 56... Ne4 {[%clk 0:00:04.8]} 57.
gxh6 {[%clk 0:00:03.4]} 57... Nf6 {[%clk 0:00:05.4]} 58. Be8 {[%clk 0:00:01.3]}
58... f4 {[%clk 0:00:05]} 0-1

[Event "*** Titled Tuesday Blitz"]
[Site "Chess.com"]
[Date "2021.04.27"]
[Round "3"]
[White "AungTZ"]
[Black "eduardoperalta"]
[Result "1-0"]
[WhiteElo "2168"]
[BlackElo "2479"]
[TimeControl "180+1"]
[EndTime "10:29:23 PDT"]
[Termination "AungTZ won by resignation"]

1. e4 {[%clk 0:02:21.7]} 1... c5 {[%clk 0:02:58.3]} 2. Nf3 {[%clk 0:02:19.2]}
2... Nc6 {[%clk 0:02:58.4]} 3. Bb5 {[%clk 0:02:19]} 3... g6 {[%clk 0:02:58.2]}
4. O-O {[%clk 0:02:18.5]} 4... Bg7 {[%clk 0:02:58.6]} 5. c3 {[%clk 0:02:18.7]}
5... Nf6 {[%clk 0:02:59]} 6. Re1 {[%clk 0:02:17.8]} 6... O-O {[%clk 0:02:55.5]}
7. e5 {[%clk 0:02:16.1]} 7... Nd5 {[%clk 0:02:55]} 8. d4 {[%clk 0:02:15.4]} 8...
cxd4 {[%clk 0:02:55.1]} 9. cxd4 {[%clk 0:02:15.4]} 9... d6 {[%clk 0:02:50.9]}
10. Bxc6 {[%clk 0:02:05.8]} 10... bxc6 {[%clk 0:02:50.4]} 11. Nc3 {[%clk
0:02:05.9]} 11... Nxc3 {[%clk 0:02:33.8]} 12. bxc3 {[%clk 0:02:05.1]} 12... Bg4
{[%clk 0:02:34.4]} 13. Bf4 {[%clk 0:01:51.6]} 13... d5 {[%clk 0:02:14.4]} 14. h3
{[%clk 0:01:49.7]} 14... Bxf3 {[%clk 0:02:06.7]} 15. Qxf3 {[%clk 0:01:48.9]}
15... Qa5 {[%clk 0:02:06.5]} 16. e6 {[%clk 0:01:34.9]} 16... fxe6 {[%clk
0:02:04.3]} 17. Qg3 {[%clk 0:01:34.6]} 17... c5 {[%clk 0:01:48.8]} 18. Rxe6
{[%clk 0:00:35.1]} 18... cxd4 {[%clk 0:01:45.8]} 19. cxd4 {[%clk 0:00:34.5]}
19... Bxd4 {[%clk 0:01:20.7]} 20. Rd1 {[%clk 0:00:32]} 20... Bf6 {[%clk
0:01:00.6]} 21. Qb3 {[%clk 0:00:23.7]} 21... Rad8 {[%clk 0:00:59.2]} 22. Be5
{[%clk 0:00:17.8]} 22... Kh8 {[%clk 0:00:55.6]} 23. Rxe7 {[%clk 0:00:14.4]}
23... Bxe5 {[%clk 0:00:52]} 24. Rxe5 {[%clk 0:00:14.5]} 24... Qc5 {[%clk
0:00:51.4]} 25. Qe3 {[%clk 0:00:12.5]} 25... Qxe3 {[%clk 0:00:48.3]} 26. Rxe3
{[%clk 0:00:12.1]} 26... Rf6 {[%clk 0:00:46]} 27. Red3 {[%clk 0:00:11.8]} 27...
Rfd6 {[%clk 0:00:45.3]} 28. f3 {[%clk 0:00:12.1]} 28... Kg7 {[%clk 0:00:45.7]}
29. Kf2 {[%clk 0:00:13]} 29... Kf6 {[%clk 0:00:46.1]} 30. Ke3 {[%clk 0:00:13.5]}
30... Ke5 {[%clk 0:00:44.4]} 31. f4+ {[%clk 0:00:13.2]} 31... Kf5 {[%clk
0:00:44.5]} 32. g4+ {[%clk 0:00:13]} 32... Ke6 {[%clk 0:00:44.1]} 33. Kd4 {[%clk
0:00:13.9]} 33... Kd7 {[%clk 0:00:42.4]} 34. Re1 {[%clk 0:00:13.5]} 34... Rc8
{[%clk 0:00:39.6]} 35. Re5 {[%clk 0:00:13.4]} 35... Rc2 {[%clk 0:00:35.4]} 36.
Rxd5 {[%clk 0:00:12.8]} 36... Rxd5+ {[%clk 0:00:33.7]} 37. Kxd5 {[%clk
0:00:13.2]} 37... Rxa2 {[%clk 0:00:34.1]} 38. Ke5+ {[%clk 0:00:13.2]} 38... Ke7
{[%clk 0:00:34.4]} 39. Rb3 {[%clk 0:00:12.8]} 39... Ra5+ {[%clk 0:00:32.2]} 40.
Ke4 {[%clk 0:00:12.5]} 40... Ra4+ {[%clk 0:00:32.4]} 41. Kf3 {[%clk 0:00:12.5]}
41... h5 {[%clk 0:00:27.2]} 42. gxh5 {[%clk 0:00:12.1]} 42... gxh5 {[%clk
0:00:28.1]} 43. Rb5 {[%clk 0:00:12]} 43... Ra3+ {[%clk 0:00:26.3]} 44. Kg2
{[%clk 0:00:12.1]} 44... Ra2+ {[%clk 0:00:16.9]} 45. Kf3 {[%clk 0:00:11.7]}
45... Ra3+ {[%clk 0:00:17.8]} 46. Kg2 {[%clk 0:00:11.7]} 46... Ra4 {[%clk
0:00:18.3]} 47. Kg3 {[%clk 0:00:10.7]} 47... Ra3+ {[%clk 0:00:16.2]} 48. Kh4
{[%clk 0:00:10.1]} 48... Rf3 {[%clk 0:00:15.3]} 49. Kg5 {[%clk 0:00:09.8]} 49...
Rxh3 {[%clk 0:00:15]} 50. f5 {[%clk 0:00:09.6]} 50... Rc3 {[%clk 0:00:10.7]} 51.
Rb7+ {[%clk 0:00:08.8]} 51... Kf8 {[%clk 0:00:10.6]} 52. Rxa7 {[%clk 0:00:09.7]}
52... h4 {[%clk 0:00:07.2]} 53. Kxh4 {[%clk 0:00:08.4]} 53... Rc4+ {[%clk
0:00:07.6]} 54. Kg5 {[%clk 0:00:08.9]} 54... Rc1 {[%clk 0:00:08.5]} 55. Kf6
{[%clk 0:00:08.9]} 55... Rc6+ {[%clk 0:00:08.2]} 56. Kg5 {[%clk 0:00:09.5]}
56... Rc5 {[%clk 0:00:08.6]} 57. Kg6 {[%clk 0:00:09.5]} 57... Rc1 {[%clk
0:00:05.6]} 58. Ra8+ {[%clk 0:00:09.3]} 58... Ke7 {[%clk 0:00:05.5]} 59. f6+
{[%clk 0:00:09.9]} 59... Kd7 {[%clk 0:00:05.6]} 60. f7 {[%clk 0:00:08.5]} 60...
Rg1+ {[%clk 0:00:05.5]} 61. Kh5 {[%clk 0:00:08.5]} 61... Rh1+ {[%clk 0:00:05.7]}
62. Kg4 {[%clk 0:00:09.1]} 62... Rg1+ {[%clk 0:00:05.2]} 63. Kh3 {[%clk
0:00:09.4]} 63... Rh1+ {[%clk 0:00:03.8]} 64. Kg2 {[%clk 0:00:09.8]} 64... Re1
{[%clk 0:00:04.7]} 65. f8=Q {[%clk 0:00:09.6]} 65... Rd1 {[%clk 0:00:03.4]} 66.
Rd8+ {[%clk 0:00:10]} 66... Ke6 {[%clk 0:00:03.8]} 67. Rxd1 {[%clk 0:00:10.2]}
1-0